bitfinex/quotes_ETHUSD_20260117
["timestamp","ask_amount","ask_price","bid_price","bid_amount"]
[1768635391287,3.95233083,3289.2,3288.9,0.97137264]
[1768635391459,0.502,3289.1,3289.0,0.97037264]
[1768635391659,1.41403845,3289.2,3289.0,0.97037264]
[1768635392392,4.45434444,3289.2,3289.0,0.97037264]
[1768635394467,1.41403845,3289.2,3289.0,0.97037264]
[1768635394674,4.45435717,3289.2,3288.9,0.001]
[1768635394858,4.45435717,3289.2,3288.9,0.97137264]
[1768635399889,4.45435717,3289.2,3288.9,0.001]
[1768635400592,3.54231872,3289.2,3288.9,0.97137264]
[1768635400809,4.45435717,3289.2,3288.9,0.97137264]
[1768635401899,1.41403845,3289.2,3288.9,0.97137264]
[1768635411460,4.45430796,3289.2,3288.9,0.97137264]
[1768635412157,1.41403845,3289.2,3288.9,0.97137264]
[1768635415076,4.45430995,3289.2,3288.9,0.97137264]
[1768635415766,1.41403845,3289.2,3288.9,0.97137264]
[1768635425078,0.502,3289.2,3288.9,0.97137264]
[1768635429871,3.542256,3289.2,3288.9,0.001]
[1768635430057,4.50929893,3289.2,3288.9,0.001]
[1768635430988,1.46904293,3289.2,3288.9,0.001]
[1768635431884,4.50930332,3289.2,3288.9,0.001]
[1768635433081,1.46904293,3289.2,3288.9,0.001]
[1768635434102,4.50929901,3289.2,3288.9,0.001]
[1768635435794,1.46904293,3289.2,3288.9,0.001]
[1768635436100,0.502,3289.2,3288.9,0.001]
[1768635441719,0.502,3289.2,3288.9,0.99330518]
[1768635443212,1.88831186,3289.5,3288.9,0.99330518]
[1768635443512,0.502,3289.3,3288.9,0.99330518]
[1768635444818,0.502,3289.3,3288.9,4.03383104]
[1768635445020,0.502,3289.3,3289.0,0.99230518]
[1768635455333,0.97627341,3289.4,3289.0,0.99230518]
[1768635455639,0.502,3289.3,3289.1,0.97577621]
[1768635457333,0.502,3289.3,3288.9,0.001]
[1768635457640,0.502,3289.3,3288.9,0.97677621]
[1768635462038,0.502,3289.3,3289.0,0.97577621]
[1768635466871,0.98305883,3289.5,3289.0,0.97577621]
[1768635467166,0.502,3289.4,3289.0,0.97577621]
[1768635471882,0.98305883,3289.5,3289.0,0.97577621]
[1768635472185,0.502,3289.3,3289.0,0.97577621]
[1768635478273,3.99209255,3289.5,3289.0,0.97577621]
[1768635478474,0.502,3289.4,3289.0,0.97577621]
[1768635478793,0.002,3289.1,3289.0,0.97577621]
[1768635487899,0.002,3289.1,3289.0,1.37750587]
[1768635488067,0.00074668,3289.1,3289.0,1.37750587]
[1768635488475,0.00074668,3289.1,3289.0,0.97577621]
[1768635491572,0.00074668,3289.1,3288.9,0.95928917]
[1768635495202,0.00074668,3289.1,3288.9,3.99980707]
[1768635495821,0.00074668,3289.1,3288.9,3.0415179]
[1768635496023,0.002,3289.4,3289.0,0.95828917]
[1768635496324,0.002,3289.4,3289.1,0.95828917]
[1768635499220,0.002,3289.4,3289.1,3.99861921]
[1768635499843,0.002,3289.4,3289.1,0.95828917]
[1768635500716,0.002,3289.4,3289.1,3.9986234]
[1768635501017,0.002,3289.4,3289.1,0.95828917]
[1768635506148,0.002,3289.4,3289.2,0.91551219]
[1768635506336,0.002,3289.8,3289.3,0.91551219]
[1768635506644,0.504,3290.1,3289.3,0.91551219]
[1768635506645,0.002,3290.1,3289.3,0.91551219]
[1768635506845,0.28483762,3290.0,3289.3,0.91551219]
[1768635507056,0.94008544,3290.1,3289.3,0.91551219]
[1768635507247,3.9795079,3290.1,3289.5,0.91551219]
[1768635510048,0.94008544,3290.1,3289.5,3.95547321]
[1768635510247,1.44208544,3290.1,3289.5,3.95547321]
[1768635510442,4.48152355,3290.1,3289.5,3.95547321]
[1768635510844,4.48152355,3290.1,3289.5,0.91551219]
[1768635511856,3.97952355,3290.1,3289.5,0.91551219]
[1768635512050,1.44208544,3290.1,3289.5,3.95548264]
[1768635512855,4.48152176,3290.1,3289.5,3.95548264]
[1768635513050,1.44208544,3290.1,3289.5,3.95548264]
[1768635513354,1.44208544,3290.1,3289.5,4.70854983]
[1768635513926,4.48151874,3290.1,3289.5,4.70854983]
[1768635515463,4.48151874,3290.1,3289.5,1.66857938]
[1768635516668,0.002,3289.8,3289.5,1.66857938]
[1768635524194,0.002,3289.8,3289.5,4.70853965]
[1768635524496,0.002,3289.8,3289.6,0.52436505]
[1768635524991,0.35267749,3290.1,3289.6,1.48000734]
[1768635525194,1.28867886,3290.1,3289.6,1.48000734]
[1768635525897,0.93800137,3290.2,3289.7,0.98604019]
[1768635526058,4.47934019,3290.2,3289.7,0.98604019]
[1768635526257,3.97734019,3290.2,3289.7,0.98604019]
[1768635526488,0.93800137,3290.2,3289.7,0.98604019]
[1768635526696,0.002,3290.2,3289.7,0.98604019]
[1768635526891,0.002,3290.2,3289.8,0.95564229]
[1768635528699,0.002,3290.2,3289.8,0.95664229]
[1768635529084,0.002,3289.9,3289.8,0.95664229]
[1768635534776,0.002,3289.9,3289.8,0.001]
[1768635538526,0.91714159,3289.9,3289.8,0.001]
[1768635539518,0.002,3289.9,3289.8,0.001]
[1768635543222,0.91714159,3289.9,3289.4,3.04004496]
[1768635543526,0.91714159,3289.9,3289.5,0.3040045]
[1768635553238,0.91714159,3289.9,3289.8,0.001]
[1768635576580,0.91714159,3289.9,3289.8,0.001]
[1768635600375,0.002,3289.9,3289.8,0.001]
[1768635612096,0.94491898,3289.9,3289.8,0.001]
[1768635615087,0.002,3289.9,3289.8,0.001]
[1768635657741,1.43658253,3289.9,3289.8,0.001]
[1768635657943,3.04160606,3289.9,3289.8,0.001]
[1768635670811,0.002,3289.9,3289.8,0.001]
[1768635685045,0.002,3289.9,3289.2,3.54221376]
[1768635685251,0.002,3289.9,3289.3,0.82702333]
[1768635687981,0.002,3289.9,3289.4,0.82702333]
[1768635693647,0.002,3289.9,3289.7,0.001]
[1768635789687,0.96988666,3289.9,3289.7,0.001]
[1768635796626,4.00955579,3289.9,3289.7,0.001]
[1768635798722,3.04166913,3289.9,3289.7,0.001]
[1768635802137,0.002,3289.9,3289.7,0.001]
[1768635884548,0.002,3289.9,3289.7,0.82802333]
[1768635884959,0.002,3289.9,3289.7,0.001]
[1768635907078,0.94266637,3289.9,3289.7,0.001]
[1768635935821,0.94311125,3289.8,3289.7,0.001]
[1768635936020,0.94311125,3289.8,3289.1,3.54228751]
[1768635936517,0.94311125,3289.7,3289.1,3.54228751]
[1768635936818,0.94311125,3289.7,3289.1,4.37031084]
[1768635937005,0.9117862,3289.7,3289.1,4.37031084]
[1768635937206,0.94311125,3289.6,3289.2,3.04024027]
[1768635937787,0.94311125,3289.6,3288.9,0.9127862]
[1768635938107,0.9117862,3289.7,3288.9,0.9127862]
[1768635938108,0.94311125,3289.4,3289.0,3.04041698]
[1768635939481,0.94311125,3289.4,3288.9,6.08206052]
[1768635947917,0.94311125,3289.4,3288.9,6.91008385]
[1768635950587,0.94311125,3289.4,3289.2,0.001]
[1768635977043,1.41385271,3289.7,3289.2,0.001]
[1768635977352,0.99444742,3289.6,3289.2,0.001]
[1768636022032,0.99444742,3289.6,3289.2,0.93107334]
[1768636022339,0.502,3289.7,3289.3,0.93007334]
[1768636022494,0.9355588,3289.7,3289.2,4.43576917]
[1768636026035,0.9355588,3289.7,3289.2,7.47598906]
[1768636027430,1.84741151,3289.7,3289.2,7.47598906]
[1768636029455,0.9355588,3289.6,3289.2,7.47598906]
[1768636029632,0.91185271,3289.7,3289.2,9.60091153]
[1768636029841,1.84741151,3289.7,3289.2,9.60091153]
[1768636032842,1.84741151,3289.7,3289.2,8.67083819]
[1768636033048,1.84741151,3289.7,3289.3,0.93007334]
[1768636034250,1.84741151,3289.7,3289.5,0.001]
[1768636068973,0.91185271,3289.7,3289.5,0.001]
[1768636117929,0.91185271,3289.7,3289.3,0.97565179]
[1768636118615,0.28493869,3289.6,3289.2,0.001]
[1768636118819,1.05224985,3289.4,3288.9,0.001]
[1768636119872,0.91198577,3289.3,3288.9,1.05060072]
[1768636120223,3.95215678,3289.3,3288.9,0.09849382]
[1768636120437,5.39962231,3289.3,3288.9,0.09849382]
[1768636120637,4.48763654,3289.3,3288.9,0.09849382]
[1768636120926,0.91198577,3289.2,3288.9,0.09849382]
[1768636121447,0.91198577,3289.2,3288.7,1.04960072]
[1768636122729,1.05224985,3289.1,3288.6,0.001]
[1768636122932,1.05224985,3289.0,3288.6,0.001]
[1768636123649,0.91205508,3288.9,3288.6,0.001]
[1768636125755,1.96430493,3288.9,3288.6,0.001]
[1768636126140,1.05224985,3288.9,3288.6,0.001]
[1768636126534,0.91205508,3288.8,3288.6,0.001]
[1768636132264,0.91205508,3288.8,3288.6,1.11402476]
[1768636139964,0.91205508,3288.8,3288.6,0.001]
[1768636146808,0.91205508,3288.8,3288.3,0.001]
[1768636146809,1.14154206,3288.7,3288.3,0.001]
[1768636147481,0.91214382,3288.6,3288.3,0.001]
[1768636147696,2.05368588,3288.6,3288.3,0.001]
[1768636147890,1.14154206,3288.6,3288.3,0.001]
[1768636148977,1.14154206,3288.5,3288.1,0.00081097]
[1768636149176,1.34691065,3288.5,3288.1,0.00081097]
[1768636149378,1.14154206,3288.4,3288.1,0.00081097]
[1768636149877,1.14154206,3288.4,3287.8,1.61502476]
[1768636150310,1.14154206,3288.3,3287.8,1.61502476]
[1768636150490,1.3674586,3288.3,3287.8,1.61502476]
[1768636152614,1.3674586,3288.3,3287.9,1.11302476]
[1768636153418,4.40854804,3288.3,3287.9,1.11302476]
[1768636154616,3.26700598,3288.3,3287.9,1.11302476]
[1768636155115,0.22591654,3288.3,3287.9,1.11302476]
[1768636155285,5.09482337,3288.4,3287.9,1.11302476]
[1768636156913,0.002,3288.5,3288.1,1.11302476]
[1768636157090,3.04290482,3288.5,3288.1,1.11302476]
[1768636158614,0.002,3288.5,3288.1,1.11302476]
[1768636158814,0.002,3288.5,3287.6,1.11402476]
[1768636158815,1.14154206,3288.4,3287.6,1.11402476]
[1768636159119,1.14154206,3288.4,3287.9,1.11302476]
[1768636159120,0.30428076,3288.4,3287.9,1.11302476]
[1768636159323,0.30428076,3288.4,3288.0,1.11402476]
[1768636159530,2.05583012,3288.5,3288.0,1.11402476]
[1768636160400,0.002,3288.5,3288.0,1.11402476]
[1768636161480,1.22137344,3288.5,3288.0,1.11402476]
[1768636163406,4.26230561,3288.5,3288.0,1.11402476]
[1768636164816,7.30323778,3288.5,3288.0,1.11402476]
[1768636166018,3.04293217,3288.5,3288.0,1.11402476]
[1768636166396,3.04293217,3288.5,3288.2,0.70210716]
[1768636166733,3.04080763,3288.6,3288.1,1.23910715]
[1768636167991,4.26201947,3288.8,3288.1,1.23910715]
[1768636167992,3.04073575,3288.7,3288.2,1.23910715]
[1768636170906,3.04262271,3288.8,3288.2,1.23910715]
[1768636171324,3.04262271,3288.8,3288.3,1.18183319]
[1768636172130,0.002,3288.8,3288.3,1.18183319]
[1768636178226,0.002,3288.8,3288.3,1.18383319]
[1768636178508,0.001,3288.5,3288.4,1.18183319]
[1768636178729,0.002,3288.8,3288.4,1.18183319]
[1768636179626,0.00046588,3288.8,3288.4,1.18183319]
[1768636188395,0.00046588,3288.8,3288.5,1.18183319]
[1768636194184,0.00046588,3288.8,3288.3,1.30084633]
[1768636195070,1.31336884,3288.8,3288.3,1.30084633]
[1768636200083,3.04071517,3288.7,3288.3,1.30084633]
[1768636200787,4.35361813,3288.7,3288.3,1.30084633]
[1768636201282,3.04071517,3288.7,3288.3,1.30084633]
[1768636202085,1.31336884,3288.8,3288.3,1.30084633]
[1768636202288,1.31336884,3288.8,3288.3,0.002]
[1768636203383,1.31336884,3288.8,3288.6,0.001]
[1768636203384,1.59783593,3288.7,3288.6,0.001]
[1768636203593,1.31290296,3288.6,3288.3,0.002]
[1768636203894,1.31290296,3288.6,3288.0,0.503]
[1768636204253,1.31290296,3288.4,3288.0,0.503]
[1768636206186,4.35390961,3288.4,3288.0,0.503]
[1768636206487,1.31290296,3288.3,3288.0,0.503]
[1768636209202,1.31290296,3288.3,3288.0,0.001]
[1768636210203,1.31290296,3288.2,3288.0,0.001]
[1768636227948,1.29498856,3288.4,3288.0,0.001]
[1768636230047,1.29498856,3288.2,3288.0,0.001]
[1768636234418,1.29498856,3288.2,3287.6,4.86325124]
[1768636234634,1.29498856,3288.2,3287.7,0.79050533]
[1768636237216,1.29498856,3288.2,3287.7,1.31855545]
[1768636238797,1.29498856,3288.2,3287.6,3.54469579]
[1768636239255,1.29498856,3288.2,3287.6,4.86325124]
[1768636239423,1.29498856,3288.2,3288.0,0.002]
[1768636239721,1.29498856,3288.2,3287.6,4.86325124]
[1768636242749,1.28021733,3288.1,3287.6,4.86325124]
[1768636245251,1.28021733,3288.1,3287.6,0.503]
[1768636248686,3.04128019,3288.1,3287.6,0.503]
[1768636248970,1.28021733,3288.0,3287.6,0.503]
[1768636251773,1.28021733,3288.0,3287.9,0.002]
[1768636252073,1.28021733,3288.0,3287.6,0.503]
[1768636254366,1.28021733,3288.0,3287.6,1.89944597]
[1768636255283,1.28021733,3288.0,3287.6,0.503]
[1768636255490,1.35224606,3287.8,3287.2,0.00080851]
[1768636255788,1.35224606,3288.6,3287.8,1.39644597]
[1768636255946,0.91240737,3288.2,3287.8,1.39644597]
[1768636256149,0.91240737,3288.2,3287.8,1.38265696]
[1768636256389,0.22646534,3288.1,3287.8,1.38265696]
[1768636256613,4.3933738,3288.3,3287.8,1.38265696]
[1768636256885,1.35224606,3288.2,3287.8,1.38265696]
[1768636257781,1.35224606,3288.2,3287.5,4.43900314]
[1768636257986,1.35224606,3288.2,3287.6,1.39644597]
[1768636258186,0.43933738,3288.1,3287.6,1.39644597]
[1768636260556,4.39327371,3288.4,3287.6,1.39644597]
[1768636260757,1.35224606,3288.3,3287.6,1.39644597]
[1768636262595,4.39327371,3288.4,3287.6,1.39644597]
[1768636263102,1.35224606,3288.3,3287.6,1.39644597]
[1768636263999,1.35224606,3288.3,3287.9,0.002]
[1768636264214,0.43932737,3288.2,3287.9,0.002]
[1768636264360,0.001,3288.1,3287.9,0.002]
[1768636269203,0.001,3288.1,3287.9,1.39844597]
[1768636269994,0.001,3288.1,3287.9,0.002]
[1768636272502,1.35224606,3288.7,3288.0,1.39644597]
[1768636272671,3.32561031,3288.6,3288.0,1.39644597]
[1768636272875,0.28480268,3288.5,3288.0,1.39644597]
[1768636273192,3.04080763,3288.6,3288.0,1.39644597]
[1768636273502,4.39305369,3288.6,3288.0,1.39644597]
[1768636277190,0.001,3288.3,3288.0,1.39644597]
[1768636288012,0.001,3288.3,3287.9,0.002]
[1768636288740,0.001,3288.3,3287.9,1.37349668]
[1768636306955,1.37088744,3288.6,3288.1,1.4126317]
[1768636307276,1.37088744,3289.1,3288.3,4.43900314]
[1768636307568,2.28303681,3289.4,3288.8,5.85163484]
[1768636307861,0.28492805,3289.3,3288.8,1.4126317]
[1768636308035,1.37088744,3289.4,3288.8,1.4126317]
[1768636309141,4.41080042,3289.6,3288.9,1.4126317]
[1768636309338,0.28446142,3289.5,3288.9,1.4126317]
[1768636309560,5.20613293,3289.6,3288.9,1.4126317]
[1768636309760,1.65534878,3289.5,3288.9,1.4126317]
[1768636309960,1.37088744,3289.5,3288.9,1.4126317]
[1768636311063,4.41087993,3289.5,3288.9,1.4126317]
[1768636311736,1.37088744,3289.5,3288.9,1.4126317]
[1768636311931,4.41087026,3289.5,3288.9,1.4126317]
[1768636312131,0.001,3289.1,3288.9,1.4126317]
[1768636314065,0.001,3289.1,3288.9,2.30186468]
[1768636314655,0.001,3289.1,3288.9,1.4126317]
[1768636316673,0.001,3289.1,3288.7,1.36274764]
[1768636323081,0.001,3289.1,3288.8,1.36274764]
[1768636324086,0.001,3289.1,3289.0,0.001]
[1768636328404,0.002,3289.5,3289.1,1.36274764]
[1768636328695,0.002,3289.5,3289.2,1.5493224]
[1768636329182,0.002,3289.5,3289.2,0.18657476]
[1768636329346,0.002,3289.5,3289.0,0.503]
[1768636329347,0.002,3289.5,3289.0,1.86574764]
[1768636330003,0.002,3289.5,3289.1,1.36274764]
[1768636331602,0.002,3289.5,3289.1,4.40304361]
[1768636336781,0.002,3289.5,3289.1,1.36274764]
[1768636339695,1.38730118,3289.5,3289.1,1.36274764]
[1768636342116,3.03984903,3289.7,3289.1,1.36274764]
[1768636342117,1.43833316,3289.8,3289.2,1.43100666]
[1768636343219,1.43752219,3289.7,3289.2,1.43100666]
[1768636347024,1.43752219,3289.6,3289.0,0.001]
[1768636347320,1.43752219,3289.6,3288.7,0.502]
[1768636348117,1.43752219,3289.4,3288.7,0.502]
[1768636350828,3.04016052,3289.3,3288.7,0.502]
[1768636350999,1.43752219,3289.2,3288.7,0.502]
[1768636351532,1.43752219,3289.2,3288.7,3.54271251]
[1768636351729,1.43752219,3289.2,3288.8,0.35427125]
[1768636355939,1.43752219,3289.2,3288.8,3.39485778]
[1768636357141,1.33090273,3289.4,3288.9,1.46757083]
[1768636357314,0.502,3289.6,3288.9,1.46757083]
[1768636357636,1.83290273,3289.6,3288.9,1.46757083]
[1768636357820,4.37087841,3289.5,3288.9,1.46757083]
[1768636358022,3.03997568,3289.5,3288.9,1.46757083]
[1768636358223,1.33090273,3289.4,3288.9,1.46757083]
[1768636358527,1.33090273,3289.4,3288.9,2.00401369]
[1768636367561,3.04003079,3289.5,3289.0,1.46757083]
[1768636367950,1.33090273,3289.4,3289.0,1.46757083]
[1768636368263,1.33090273,3289.4,3288.9,1.46757083]
[1768636372459,0.002,3289.2,3288.9,1.46757083]
[1768636372660,0.002,3289.2,3288.9,2.00401339]
[1768636377367,1.33090273,3289.4,3288.9,2.00401339]
[1768636377569,1.17973937,3289.4,3288.9,1.46757083]
[1768636379169,4.21981272,3289.4,3288.9,1.46757083]
[1768636379566,3.04007335,3289.4,3288.9,1.46757083]
[1768636379861,1.39876526,3289.3,3288.9,1.46757083]
[1768636385271,0.002,3289.1,3288.9,1.46757083]
[1768636385570,0.002,3289.1,3289.0,0.48624647]
[1768636388073,0.002,3289.1,3288.9,1.46757083]
[1768636398172,0.002,3289.1,3288.8,3.39489389]
[1768636398378,0.002,3289.1,3288.8,4.75826386]
[1768636406889,0.002,3289.1,3288.9,1.47204362]
[1768636413298,0.002,3289.1,3288.8,3.39489389]
[1768636413796,0.002,3289.1,3288.8,4.81579205]
[1768636413995,0.002,3289.1,3288.9,0.53177921]
[1768636414170,0.002,3289.4,3289.0,1.42089816]
[1768636414968,0.002,3289.4,3289.1,0.502]
[1768636417994,1.43676652,3289.4,3289.1,0.502]
[1768636421103,1.43476652,3289.3,3288.9,0.502]
[1768636421304,1.43676652,3289.1,3288.9,0.502]
[1768636421675,0.002,3289.1,3288.9,0.502]
[1768636423674,1.43476652,3289.0,3288.5,3.88]
[1768636423874,1.43476652,3289.0,3288.3,3.04107011]
[1768636424126,1.43476652,3289.0,3288.2,3.54313972]
[1768636424283,1.43476652,3289.0,3288.3,3.04107815]
[1768636424610,1.43476652,3289.0,3288.3,3.04102487]
[1768636424798,1.43476652,3289.0,3288.4,3.0409891]
[1768636425507,3.04046583,3289.0,3288.3,3.04105332]
[1768636425805,1.43476652,3288.9,3288.3,3.04105332]
[1768636426020,1.43476652,3288.9,3288.3,1.24402504]
[1768636427610,1.43476652,3288.9,3288.2,4.96403529]
[1768636428994,3.04053631,3288.9,3288.2,4.96403529]
[1768636429193,1.43476652,3288.8,3288.2,4.96403529]
[1768636432115,1.43476652,3288.8,3288.3,1.46063637]
[1768636433220,1.43476652,3288.8,3288.5,0.001]
[1768636442528,0.002,3289.1,3288.6,1.46063637]
[1768636442743,3.04204347,3289.5,3288.8,1.46063637]
[1768636443250,4.41664072,3289.5,3288.8,1.46063637]
[1768636444350,1.37659725,3289.4,3288.8,1.46063637]
[1768636445226,0.001,3289.1,3288.8,1.46063637]
[1768636445644,4.41671945,3289.4,3288.8,1.46063637]
[1768636449955,1.37459725,3289.3,3288.8,1.46063637]
[1768636452267,1.37459725,3289.3,3288.8,2.40462862]
[1768636452433,1.37459725,3289.3,3288.9,1.46063637]
[1768636452638,0.002,3289.4,3288.9,1.46063637]
[1768636453455,3.04206916,3289.4,3288.9,1.46063637]
[1768636454341,0.002,3289.4,3288.9,1.46063637]
[1768636454645,0.002,3289.4,3288.9,2.14475103]
[1768636456463,0.002,3289.4,3288.9,5.18528103]
[1768636456664,3.04051711,3289.8,3288.9,5.18528103]
[1768636456665,0.00081097,3289.8,3289.1,1.46063637]
[1768636456828,1.37540822,3289.8,3289.1,1.46063637]
[1768636457029,4.4151481,3289.8,3289.1,1.46063637]
[1768636457359,4.4151481,3289.8,3289.2,1.46063637]
[1768636457937,3.04055085,3289.8,3289.2,1.46063637]
[1768636458188,0.00081097,3289.8,3289.4,1.46063637]
[1768636470474,0.002,3289.5,3289.4,1.46063637]
[1768636470679,0.00281097,3289.8,3289.4,1.46063637]
[1768636471082,1.4604313,3289.8,3289.4,1.46063637]
[1768636472279,3.03979086,3289.7,3289.4,1.46063637]
[1768636472681,3.03979086,3289.7,3289.2,1.48375661]
[1768636472883,3.03979086,3289.7,3289.3,1.48375661]
[1768636477354,4.50017059,3289.8,3289.3,1.48375661]
[1768636479787,0.00281097,3289.8,3289.3,1.48375661]
[1768636480167,0.00281097,3289.8,3289.3,1.51415821]
[1768636480367,0.002,3289.9,3289.4,1.48375661]
[1768636480572,0.002,3289.9,3289.6,1.48375661]
[1768636481373,0.002,3289.9,3289.5,2.07578407]
[1768636483786,0.002,3289.8,3289.5,2.07578407]
[1768636502303,0.002,3289.8,3289.5,1.48375661]
[1768636514404,1.54047736,3289.8,3289.3,1.52174055]
[1768636516999,4.58021993,3289.8,3289.3,1.52174055]
[1768636519733,4.58021993,3289.8,3289.6,0.001]
[1768636522334,3.04174257,3289.8,3289.6,0.001]
[1768636523913,0.002,3289.8,3289.6,0.001]
[1768636540572,1.51402099,3289.8,3289.6,0.001]
[1768636542383,4.55181185,3289.7,3289.6,0.001]
[1768636543486,4.55181185,3289.7,3289.2,1.58070039]
[1768636546069,1.51202099,3289.6,3289.2,1.58070039]
[1768636546692,3.03979086,3289.7,3289.2,1.58070039]
[1768636547005,1.51202099,3289.7,3289.2,1.58070039]
[1768636547872,1.51202099,3289.7,3289.1,0.001]
[1768636548223,1.51202099,3289.5,3288.6,1.58070039]
[1768636548500,1.51202099,3289.3,3288.6,1.58070039]
[1768636548698,1.51202099,3289.1,3288.6,1.58070039]
[1768636549069,1.51202099,3288.9,3288.6,1.58070039]
[1768636549705,3.04043782,3289.0,3288.6,1.58070039]
[1768636549915,4.55237918,3289.1,3288.6,1.58070039]
[1768636550411,5.05437918,3289.1,3288.6,1.58070039]
[1768636554790,5.17355885,3289.1,3288.9,0.001]
[1768636554990,5.99493222,3289.1,3288.6,1.58070039]
[1768636558684,0.502,3289.4,3288.6,1.61205628]
[1768636558891,3.54206809,3289.4,3288.6,1.61205628]
[1768636559325,5.17326875,3289.4,3288.6,1.61205628]
[1768636560025,4.67126875,3289.4,3288.6,1.61205628]
[1768636560324,4.67126875,3289.4,3288.7,1.61205628]
[1768636561123,3.04006809,3289.4,3288.7,1.61205628]
[1768636561429,3.04006809,3289.4,3288.7,1.64246343]
[1768636563131,4.6712087,3289.5,3288.8,1.61205628]
[1768636565327,3.04000804,3289.5,3288.8,1.61205628]
[1768636566641,3.04000804,3289.5,3288.8,1.6424625]
[1768636566937,3.04000804,3289.5,3288.9,1.61205628]
[1768636567243,3.04000804,3289.5,3288.9,1.61305628]
[1768636567706,2.8887583,3289.6,3289.0,1.61205628]
[1768636567908,0.002,3289.4,3289.0,1.61205628]
[1768636568541,0.002,3289.4,3289.1,1.61205628]
[1768636579277,4.67111881,3289.6,3289.1,1.61205628]
[1768636579278,4.67108599,3289.6,3289.1,1.61205628]
[1768636579475,4.67108599,3289.6,3289.1,1.87558897]
[1768636580257,4.67108599,3289.6,3289.1,1.87658897]
[1768636589983,1.63120066,3289.6,3289.1,1.87658897]
[1768636590308,4.67109534,3289.6,3289.1,1.87658897]
[1768636592209,4.67109534,3289.6,3289.4,0.001]
[1768636602634,1.63120066,3289.6,3289.4,0.001]
[1768636603824,4.67109401,3289.6,3289.4,0.001]
[1768636604146,3.03989335,3289.6,3289.4,0.001]
[1768636604573,4.60561596,3289.7,3289.4,0.001]
[1768636607594,1.56578539,3289.6,3289.4,0.001]
[1768636607894,2.42171504,3289.6,3289.1,1.60242756]
[1768636608172,1.56578539,3289.6,3289.1,1.60242756]
[1768636609040,3.03997568,3289.5,3289.1,1.60242756]
[1768636616193,3.03997568,3289.5,3289.4,0.001]
[1768636616398,3.03997568,3289.5,3289.1,1.60242756]
[1768636628644,4.60569257,3289.6,3289.1,1.60242756]
[1768636628937,3.03990718,3289.6,3289.1,1.60242756]
[1768636629087,3.03990718,3289.6,3289.4,0.001]
[1768636629292,3.81495358,3289.6,3289.2,1.53134776]
[1768636629507,3.03990718,3289.6,3289.2,1.53134776]
[1768636641133,3.03990718,3289.6,3289.4,0.001]
[1768636641334,3.03990718,3289.6,3289.2,1.53134776]
[1768636643935,3.03982312,3289.7,3289.2,1.53134776]
[1768636644123,3.04173917,3289.8,3289.2,1.53134776]
[1768636649758,4.71312209,3289.8,3289.2,1.53134776]
[1768636650756,7.75286126,3289.8,3289.2,1.53134776]
[1768636653862,0.002,3289.5,3289.2,1.53134776]
[1768636660389,0.002,3289.5,3289.2,2.03881893]
[1768636660550,0.002,3289.5,3289.2,0.50747117]
[1768636660746,0.002,3289.5,3289.3,1.53572764]
[1768636668886,0.002,3289.5,3289.1,1.53672764]
[1768636677193,0.002,3289.5,3289.4,0.001]
[1768636719337,0.002,3289.5,3289.4,1.5625529]
[1768636721654,0.002,3289.5,3289.4,0.001]
[1768636740109,0.002,3289.5,3289.4,1.56200237]
[1768636740688,0.002,3289.5,3289.4,0.001]
[1768636750193,0.91383054,3289.5,3289.4,0.001]
[1768636761036,0.002,3289.5,3289.4,0.001]
[1768636768014,0.91383054,3289.5,3289.4,0.001]
[1768636778752,0.91383054,3289.5,3289.2,1.67422545]
[1768636778952,0.91383054,3289.5,3289.1,0.001]
[1768636779155,0.91383054,3289.5,3289.1,1.55308173]
[1768636782062,0.91383054,3289.5,3289.4,0.001]
[1768636782246,0.91383054,3289.5,3289.1,1.55308173]
[1768636786553,0.002,3289.5,3289.1,1.55308173]
[1768636789582,0.002,3289.5,3289.2,1.55208173]
[1768636793785,0.002,3289.5,3289.2,4.59232731]
[1768636794689,0.002,3289.5,3289.2,1.55208173]
[1768636795457,0.002,3289.5,3289.2,4.59231633]
[1768636800300,0.002,3289.5,3289.2,1.55208173]
[1768636802768,0.002,3289.5,3289.1,0.001]
[1768636803482,1.60393399,3289.5,3289.1,0.001]
[1768636804072,1.60193399,3289.4,3289.1,0.001]
[1768636804586,2.10393399,3289.4,3289.1,0.001]
[1768636807716,3.54209902,3289.4,3289.1,0.001]
[1768636807899,3.54209902,3289.4,3288.5,0.001]
[1768636807900,1.88665573,3289.3,3288.5,0.001]
[1768636808078,1.60193399,3289.1,3288.5,0.001]
[1768636808279,1.60193399,3288.9,3288.5,0.001]
[1768636809093,0.91201904,3288.8,3288.5,0.001]
[1768636810826,0.91201904,3288.8,3288.5,1.55720198]
[1768636813115,0.91201904,3288.8,3288.6,1.55620198]
[1768636816709,1.60193399,3289.1,3288.6,1.55620198]
[1768636816879,0.91201904,3289.0,3288.6,1.55620198]
[1768636817810,2.51395303,3289.0,3288.6,1.55620198]
[1768636818011,2.51395303,3289.0,3288.5,0.001]
[1768636818213,1.60193399,3288.9,3288.5,0.001]
[1768636818634,2.51395303,3288.9,3288.5,0.001]
[1768636820348,1.60193399,3288.9,3288.5,0.001]
[1768636820640,1.60193399,3288.7,3288.5,0.001]
[1768636820841,1.60193399,3288.6,3288.1,0.00281138]
[1768636821423,1.60193399,3288.5,3288.1,0.00281138]
[1768636823741,1.60193399,3288.5,3288.1,1.54789764]
[1768636828153,5.56967083,3288.6,3288.1,1.54789764]
[1768636828319,4.65758802,3288.6,3288.1,1.54789764]
[1768636828633,0.91212996,3288.5,3288.1,1.54789764]
[1768636828839,2.52889444,3288.5,3288.1,0.00281138]
[1768636830250,2.52889444,3288.5,3288.4,0.002]
[1768636835449,0.91212996,3288.5,3288.4,0.002]
[1768636845069,1.37144191,3289.1,3288.6,1.58751794]
[1768636845242,5.06476369,3289.3,3288.8,1.52266246]
[1768636845742,1.52260317,3289.2,3288.8,1.52266246]
[1768636847062,4.56292403,3289.2,3288.8,1.52266246]
[1768636849668,1.52260317,3289.2,3288.8,1.52266246]
[1768636850262,4.56286688,3289.2,3288.8,1.52266246]
[1768636850785,1.52260317,3289.2,3288.8,1.52266246]
[1768636851674,4.5629347,3289.2,3288.8,1.52266246]
[1768636853372,4.5629347,3289.2,3288.8,1.67492871]
[1768636853960,0.001,3288.9,3288.8,1.67492871]